fUST/lending_fUST_20241106
["ID","MTS","AMOUNT","RATE_DAILY","PERIOD"]
[341360093,1730832643484,-500.0,0.00041095,14]
[341360094,1730832643498,-500.0,0.00041095,14]
[341360095,1730832643510,-500.0,0.00041095,14]
[341360096,1730832643520,-500.0,0.00041095,14]
[341360097,1730832643531,-500.0,0.00041095,14]
[341360098,1730832643543,-500.0,0.00041095,14]
[341360099,1730832643553,-500.0,0.00041095,14]
[341360100,1730832643563,-500.0,0.00041095,14]
[341360101,1730832643574,-500.0,0.00041095,14]
[341360102,1730832643584,-500.0,0.00041095,14]
[341360103,1730832643595,-500.0,0.00041095,14]
[341360104,1730832643607,-500.0,0.00041095,14]
[341360105,1730832643618,-500.0,0.00041095,14]
[341360106,1730832643643,-500.0,0.00041095,14]
[341360107,1730832643656,-500.0,0.00041095,14]
[341360108,1730832643669,-500.0,0.00041095,14]
[341360109,1730832643681,-500.0,0.00041095,14]
[341360110,1730832643694,-500.0,0.00041095,14]
[341360111,1730832643707,-500.0,0.00041095,14]
[341360112,1730832643720,-500.0,0.00041095,14]
[341360113,1730832643731,-500.0,0.00041095,14]
[341360114,1730832643745,-500.0,0.00041095,14]
[341360115,1730832643759,-500.0,0.00041095,14]
[341360116,1730832643770,-500.0,0.00041095,14]
[341360117,1730832643782,-500.0,0.00041095,14]
[341360118,1730832643794,-500.0,0.00041095,14]
[341360119,1730832643807,-500.0,0.00041095,14]
[341360120,1730832643821,-500.0,0.00041095,14]
[341360121,1730832643833,-553.19,0.00041095,14]
[341360122,1730832643844,-500.0,0.00041095,14]
[341360123,1730832643856,-553.19,0.00041095,14]
[341360124,1730832643868,-500.0,0.00041095,14]
[341360125,1730832643884,-553.19,0.00041095,14]
[341360126,1730832643916,-553.19,0.00041095,14]
[341360127,1730832643967,-553.19,0.00041095,14]
[341360128,1730832644070,-950.95,0.00041095,14]
[341360129,1730832644212,-950.95,0.00041095,14]
[341360130,1730832644282,-950.95,0.00041095,14]
[341360131,1730832644381,-950.95,0.00041095,14]
[341360132,1730832644521,-950.95,0.00041095,14]
[341360133,1730832644620,-950.95,0.00041095,14]
[341360134,1730832644729,-950.95,0.00041095,14]
[341360135,1730832644786,-950.95,0.00041095,14]
[341360136,1730832644798,-950.95,0.00041095,14]
[341360137,1730832644809,-950.95,0.00041095,14]
[341360138,1730832644819,-950.95,0.00041095,14]
[341360139,1730832644830,-950.95,0.00041095,14]
[341360140,1730832644841,-950.95,0.00041095,14]
[341360141,1730832644852,-500.0,0.00041095,14]
[341360142,1730832644862,-500.0,0.00041095,14]
[341360143,1730832644874,-500.0,0.00041095,14]
[341360144,1730832644886,-500.0,0.00041095,14]
[341360145,1730832644900,-500.0,0.00041095,14]
[341360146,1730832644911,-500.0,0.00041095,14]
[341360147,1730832644921,-500.0,0.00041095,14]
[341360148,1730832644931,-391.25097313,0.00041095,14]
[341360149,1730832644954,-108.74902687,0.00041095,14]
[341360150,1730832644964,-197.13,0.00041095,14]
[341360151,1730832644974,-500.0,0.00041095,14]
[341360152,1730832644989,-500.0,0.00041095,14]
[341360153,1730832645000,-500.0,0.00041095,14]
[341360154,1730832645013,-500.0,0.00041095,14]
[341360155,1730832645025,-500.0,0.00041095,14]
[341360156,1730832645036,-500.0,0.00041095,14]
[341360157,1730832645048,-500.0,0.00041095,14]
[341360158,1730832645059,-500.0,0.00041095,14]
[341360159,1730832645070,-500.0,0.00041095,14]
[341360160,1730832645080,-500.0,0.00041095,14]
[341360161,1730832645090,-500.0,0.00041095,14]
[341360162,1730832645101,-501.98599992,0.00041095,14]
[341360163,1730832645113,-500.0,0.00041095,14]
[341360164,1730832645124,-500.0,0.00041095,14]
[341360165,1730832645135,-500.0,0.00041095,14]
[341360166,1730832645146,-500.0,0.00041096,31]
[341360167,1730832645157,-422.15625591,0.00041096,31]
[341360168,1730832645168,-4553.94414,0.00041113,120]
[341360169,1730832645179,-211.1299437,0.00041178,30]
[341360170,1730832645191,-205.1786008,0.00041178,30]
[341360171,1730832645203,-324.32603279,0.00041375,120]
[341360172,1730832645216,-500.0,0.00041375,120]
[341360173,1730832645230,-341.98171685,0.00041375,120]
[341360196,1730832646041,-396.81107189,0.00040994,8]
[341360197,1730832646056,-201.95666238,0.00040994,8]
[341360198,1730832646069,-153.70761546,0.00041375,120]
[341360199,1730832646084,-400.0,0.00041375,120]
[341360203,1730832966900,165.762098,0.00013973,2]
[341360205,1730833247445,520.83333333,0.00020816,2]
[341360214,1730833521052,164.970222,0.00013973,2]
[341360215,1730833627401,-160.0,0.0003,2]
[341360216,1730833627424,-38.66305705,0.00035175,2]
[341360217,1730833629610,-121.86789195,0.00035175,2]
[341360218,1730833629632,-520.83333333,0.00035363,2]
[341360219,1730833629653,-307.03,0.00039,2]
[341360220,1730833629675,-150.0,0.00039,2]
[341360221,1730833629696,-150.112233,0.0004,55]
[341360222,1730833629716,-293.182438,0.0004,55]
[341360223,1730833629741,-170.136,0.0004054,7]
[341360224,1730833629761,-2388.36341098,0.00040994,120]
[341360225,1730833629784,-349.41536792,0.00041,120]
[341360226,1730833634085,-650.58463208,0.00041,120]
[341360227,1730833634107,-260.48768874,0.00041073,5]
[341360228,1730833634129,-256.04624789,0.00041073,5]
[341360229,1730833634149,-501.5204398,0.00041073,5]
[341360230,1730833634170,-500.0,0.00041094,2]
[341360231,1730833634190,-500.0,0.00041094,7]
[341360232,1730833634219,-999.0,0.00041094,120]
[341360233,1730833634243,-500.0,0.00041095,14]
[341360234,1730833634263,-427.41509543,0.00041095,14]
[341360235,1730833634290,-76.16786594,0.00041095,14]
[341360236,1730833634317,-103.33427744,0.00041095,14]
[341360237,1730833642092,-150.0,0.00039,2]
[341360238,1730833642118,-260.46132238,0.00041095,14]
[341360239,1730833642140,-527.14265424,0.00041095,14]
[341360240,1730833642162,-42.7565718,0.00041095,14]
[341360241,1730833745115,-520.83333333,0.0002809,2]
[341360242,1730833807286,465.1440423,0.00031931,2]
[341360317,1730833838272,-276.33,0.00039,2]
[341360318,1730833838282,-1910.6907288,0.00040995,120]
[341360319,1730833838291,-999.0,0.00041094,120]
[341360320,1730833838300,-500.0,0.00041094,31]
[341360321,1730833838310,-563.273325,0.00041095,14]
[341360322,1730833838320,-500.0,0.00041095,14]
[341360323,1730833838329,-500.0,0.00041095,14]
[341360324,1730833838339,-500.0,0.00041095,14]
[341360325,1730833838348,-500.0,0.00041095,14]
[341360326,1730833838358,-500.0,0.00041095,14]
[341360327,1730833838367,-500.0,0.00041095,14]
[341360328,1730833838378,-274.88374768,0.00041095,14]
[341360329,1730833838388,-500.0,0.00041095,14]
[341360330,1730833838399,-500.0,0.00041095,14]
[341360331,1730833838408,-500.0,0.00041095,14]
[341360332,1730833838417,-500.54403551,0.00041095,5]
[341360333,1730833838427,-500.0,0.00041095,14]
[341360334,1730833838436,-502.46448374,0.00041095,14]
[341360335,1730833838446,-500.0,0.00041095,14]
[341360336,1730833838455,-506.17743117,0.00041095,14]
[341360337,1730833838465,-190.92928459,0.00041095,14]
[341360338,1730833838474,-500.0,0.00041095,14]
[341360339,1730833838483,-500.0,0.00041095,14]
[341360340,1730833838493,-500.0,0.00041095,14]
[341360341,1730833838502,-502.64031189,0.00041095,14]
[341360342,1730833838511,-500.0,0.00041095,14]
[341360343,1730833838521,-500.0,0.00041095,14]
[341360344,1730833838530,-265.75,0.00041095,14]
[341360345,1730833838539,-500.0,0.00041095,14]
[341360346,1730833838548,-510.99117,0.00041095,14]
[341360347,1730833838558,-501.8772885,0.00041095,14]
[341360348,1730833838567,-500.0,0.00041095,14]
[341360349,1730833838577,-500.0,0.00041095,14]
[341360350,1730833838586,-500.0,0.00041095,14]
[341360351,1730833838596,-500.0,0.00041095,14]
[341360352,1730833838606,-500.0,0.00041095,14]
[341360353,1730833838615,-436.03673004,0.00041095,14]
[341360354,1730833838626,-501.17588802,0.00041095,14]
[341360355,1730833838635,-500.0,0.00041095,14]
[341360356,1730833838644,-500.0,0.00041095,14]
[341360357,1730833838655,-513.88296897,0.00041095,14]
[341360358,1730833838665,-506.30487625,0.00041095,14]
[341360359,1730833838674,-500.0,0.00041095,14]
[341360360,1730833838687,-500.0,0.00041095,14]
[341360361,1730833838696,-500.0,0.00041095,14]
[341360362,1730833838707,-500.0,0.00041095,14]
[341360363,1730833838716,-568.50564606,0.00041095,14]
[341360364,1730833838726,-500.0,0.00041095,14]
[341360365,1730833838735,-500.0,0.00041095,14]
[341360366,1730833838744,-500.0,0.00041095,14]
[341360367,1730833838755,-477.23380652,0.00041095,14]
[341360368,1730833838764,-500.0,0.00041095,14]
[341360369,1730833838774,-500.0,0.00041095,14]
[341360370,1730833838783,-500.0,0.00041095,14]
[341360371,1730833838792,-500.0,0.00041095,14]
[341360372,1730833838802,-535.69,0.00041095,14]
[341360373,1730833838811,-500.0,0.00041095,14]
[341360374,1730833838821,-513.09,0.00041095,14]
[341360375,1730833838831,-500.0,0.00041095,14]
[341360376,1730833838840,-500.0,0.00041095,14]
[341360377,1730833838850,-500.0,0.00041095,14]
[341360378,1730833838859,-502.73674925,0.00041095,14]
[341360379,1730833838868,-501.71184567,0.00041095,14]
[341360380,1730833838878,-500.0,0.00041095,14]
[341360381,1730833838887,-500.0,0.00041095,14]
[341360382,1730833838897,-500.0,0.00041095,14]
[341360383,1730833838906,-508.14146953,0.00041095,14]
[341360384,1730833838916,-518.45391823,0.00041095,14]
[341360385,1730833838925,-500.0,0.00041095,14]
[341360386,1730833838934,-500.0,0.00041095,14]
[341360387,1730833838944,-500.0,0.00041095,14]
[341360388,1730833838953,-500.0,0.00041095,14]
[341360389,1730833838962,-500.0,0.00041095,14]
[341360390,1730833838972,-502.65482888,0.00041095,14]
[341360391,1730833838982,-437.23019936,0.00041095,14]
[341360392,1730833838992,-500.0,0.00041095,14]
[341360393,1730833839001,-500.0,0.00041095,14]
[341360394,1730833839010,-502.73091166,0.00041095,14]
[341360395,1730833839019,-500.0,0.00041095,14]
[341360396,1730833839030,-610.40236435,0.00041095,14]
[341360397,1730833839040,-500.0,0.00041095,14]
[341360398,1730833839049,-500.0,0.00041095,14]
[341360399,1730833839059,-507.06429306,0.00041095,14]
[341360400,1730833839069,-504.45056544,0.00041095,14]
[341360401,1730833839079,-500.0,0.00041095,14]
[341360402,1730833839089,-455.29956672,0.00041095,14]
[341360403,1730833839098,-500.0,0.00041095,14]
[341360404,1730833839108,-388.6294822,0.00041095,14]
[341360405,1730833839117,-500.0,0.00041095,14]
[341360406,1730833839127,-500.0,0.00041095,14]
[341360407,1730833839137,-162.62527204,0.00041095,14]
[341360408,1730833839146,-500.0,0.00041095,14]
[341360409,1730833839156,-525.82,0.00041095,14]
[341360410,1730833839165,-500.0,0.00041095,14]
[341360411,1730833839175,-502.09510416,0.00041095,14]
[341360412,1730833839184,-556.08,0.00041095,14]
[341360413,1730833839193,-500.0,0.00041095,14]
[341360414,1730833839202,-500.0,0.00041095,14]
[341360415,1730833839313,-500.0,0.00041095,14]
[341360416,1730833839322,-500.0,0.00041095,14]
[341360417,1730833839332,-500.0,0.00041095,14]
[341360418,1730833839343,-501.51169872,0.00041095,14]
[341360419,1730833839352,-500.0,0.00041095,14]
[341360420,1730833839361,-500.0,0.00041095,14]
[341360421,1730833839371,-309.74295944,0.00041095,14]
[341360422,1730833839380,-405.46832262,0.00041095,14]
[341360423,1730833839390,-568.32150609,0.00041095,14]
[341360424,1730833839399,-500.0,0.00041095,14]
[341360425,1730833839409,-506.35253041,0.00041095,14]
[341360426,1730833839418,-500.0,0.00041095,14]
[341360427,1730833839427,-541.78473439,0.00041095,14]
[341360428,1730833839439,-500.0,0.00041095,14]
[341360429,1730833839448,-502.93571961,0.00041095,14]
[341360430,1730833839457,-500.0,0.00041095,14]
[341360431,1730833839466,-513.40842967,0.00041095,14]
[341360432,1730833839475,-415.73628175,0.00041095,14]
[341360433,1730833839485,-514.6971034,0.00041095,14]
[341360434,1730833839496,-503.6356935,0.00041095,14]
[341360435,1730833839505,-500.0,0.00041095,14]
[341360436,1730833839514,-500.0,0.00041095,14]
[341360437,1730833839525,-500.0,0.00041095,14]
[341360438,1730833839536,-506.6102976,0.00041095,14]
[341360439,1730833839547,-500.0,0.00041095,14]
[341360440,1730833839558,-500.0,0.00041095,14]
[341360441,1730833839570,-504.43108934,0.00041095,14]
[341360442,1730833839579,-504.59469775,0.00041095,14]
[341360443,1730833839589,-500.0,0.00041095,14]
[341360444,1730833839599,-504.26874824,0.00041095,14]
[341360445,1730833839608,-506.29511336,0.00041095,14]
[341360446,1730833839617,-500.0,0.00041095,14]
[341360447,1730833839627,-504.06978989,0.00041095,14]
[341360448,1730833839636,-500.0,0.00041095,14]
[341360449,1730833839645,-502.26869928,0.00041095,14]
[341360450,1730833839655,-500.0,0.00041095,14]
[341360451,1730833839665,-504.59804816,0.00041095,14]
[341360452,1730833839674,-501.91972121,0.00041095,14]
[341360453,1730833839683,-500.0,0.00041095,14]
[341360454,1730833839693,-500.0,0.00041095,14]
[341360455,1730833839702,-173.21818613,0.00041095,14]
[341360457,1730833839712,-500.0,0.00041095,14]
[341360459,1730833839721,-500.0,0.00041095,14]
[341360461,1730833839731,-503.21929015,0.00041095,14]
[341360462,1730833839741,-510.87994634,0.00041095,14]
[341360463,1730833839751,-501.61851017,0.00041095,14]
[341360464,1730833839761,-500.0,0.00041095,14]
[341360465,1730833839771,-500.0,0.00041095,14]
[341360466,1730833839780,-500.0,0.00041095,14]
[341360467,1730833839790,-500.0,0.00041095,14]
[341360469,1730833839799,-500.0,0.00041095,14]
[341360470,1730833839809,-500.0,0.00041095,14]
[341360471,1730833839818,-500.0,0.00041095,14]
[341360472,1730833839827,-500.0,0.00041095,14]
[341360473,1730833839836,-328.59,0.00041095,7]
[341360474,1730833839846,-500.0,0.00041095,14]
[341360475,1730833839855,-500.0,0.00041095,14]
[341360476,1730833839865,-500.0,0.00041095,14]
[341360477,1730833839874,-500.0,0.00041095,14]
[341360479,1730833839883,-500.0,0.00041095,14]
[341360480,1730833839893,-500.0,0.00041095,14]
[341360481,1730833839903,-500.0,0.00041095,14]
[341360482,1730833839912,-500.0,0.00041095,14]
[341360483,1730833839921,-500.0,0.00041095,14]
[341360484,1730833839931,-523.0922346,0.00041095,14]
[341360485,1730833839940,-501.83121502,0.00041095,14]
[341360486,1730833839949,-501.82290906,0.00041095,14]
[341360487,1730833839960,-500.0,0.00041095,14]
[341360488,1730833839969,-500.0,0.00041095,14]
[341360489,1730833839978,-500.0,0.00041095,14]
[341360490,1730833839987,-500.0,0.00041095,14]
[341360491,1730833839996,-506.91562552,0.00041095,14]
[341360492,1730833840006,-507.0740684,0.00041095,14]
[341360493,1730833840016,-504.28709739,0.00041095,14]
[341360495,1730833840025,-500.0,0.00041095,10]
[341360496,1730833840034,-500.0,0.00041095,14]
[341360497,1730833840043,-502.85738832,0.00041095,14]
[341360498,1730833840053,-500.0,0.00041095,14]
[341360499,1730833840063,-500.0,0.00041095,14]
[341360500,1730833840072,-309.33355079,0.00041095,14]
[341360501,1730833840081,-500.0,0.00041095,14]
[341360502,1730833840091,-502.25672124,0.00041095,14]
[341360503,1730833840100,-500.0,0.00041095,14]
[341360504,1730833840109,-500.0,0.00041095,14]
[341360505,1730833840119,-500.0,0.00041095,14]
[341360506,1730833840130,-500.0,0.00041095,14]
[341360507,1730833840139,-500.0,0.00041095,14]
[341360508,1730833840149,-500.0,0.00041095,14]
[341360509,1730833840158,-285.04357136,0.00041095,14]
[341360510,1730833840168,-502.01839354,0.00041095,14]
[341360511,1730833840179,-500.0,0.00041095,14]
[341360513,1730833840189,-502.42782202,0.00041095,14]
[341360514,1730833840199,-506.74432512,0.00041095,14]
[341360515,1730833840209,-500.0,0.00041095,14]
[341360516,1730833840220,-509.43431548,0.00041095,14]
[341360517,1730833840231,-500.0,0.00041095,14]
[341360518,1730833840243,-500.0,0.00041095,14]
[341360519,1730833840252,-504.24948667,0.00041095,14]
[341360520,1730833840262,-500.0,0.00041095,14]
[341360521,1730833840274,-500.0,0.00041095,14]
[341360522,1730833840285,-500.0,0.00041095,14]
[341360523,1730833840296,-509.09127653,0.00041095,14]
[341360524,1730833840307,-635.51,0.00041095,14]
[341360525,1730833840316,-506.1331125,0.00041095,14]
[341360526,1730833840326,-500.0,0.00041095,14]
[341360527,1730833840339,-500.0,0.00041095,14]
[341360528,1730833840348,-500.0,0.00041095,14]
[341360529,1730833840358,-500.0,0.00041095,14]
[341360530,1730833840368,-506.29421384,0.00041095,14]
[341360531,1730833840378,-500.0,0.00041095,14]
[341360532,1730833840387,-500.0,0.00041095,14]
[341360533,1730833840397,-500.0,0.00041095,14]
[341360534,1730833840406,-500.0,0.00041095,14]
[341360535,1730833840417,-508.06677001,0.00041095,14]
[341360536,1730833840427,-533.08543518,0.00041095,14]
[341360537,1730833840437,-506.42301471,0.00041095,14]
[341360538,1730833840449,-500.0,0.00041095,14]
[341360539,1730833840459,-500.0,0.00041095,14]
[341360540,1730833840469,-500.0,0.00041095,14]
[341360541,1730833840480,-500.0,0.00041095,14]
[341360542,1730833840491,-504.60785418,0.00041095,14]
[341360543,1730833840500,-500.0,0.00041095,14]
[341360544,1730833840510,-565.09796125,0.00041095,14]
[341360545,1730833840520,-500.0,0.00041095,14]
[341360546,1730833840529,-500.0,0.00041095,14]
[341360547,1730833840539,-500.0,0.00041095,14]
[341360548,1730833840548,-500.0,0.00041095,14]
[341360549,1730833840557,-500.0,0.00041095,14]
[341360550,1730833840567,-500.0,0.00041095,14]
[341360551,1730833840577,-500.0,0.00041095,14]
[341360552,1730833840585,-508.81686657,0.00041095,14]
[341360553,1730833840596,-508.85776512,0.00041095,14]
[341360554,1730833840605,-510.10583659,0.00041095,14]
[341360555,1730833840615,-522.86,0.00041095,14]
[341360556,1730833840624,-500.0,0.00041095,14]
[341360557,1730833840633,-500.0,0.00041095,14]
[341360558,1730833840642,-500.0,0.00041095,14]
[341360559,1730833840652,-500.0,0.00041095,14]
[341360560,1730833840661,-500.0,0.00041095,14]
[341360561,1730833840670,-500.0,0.00041095,14]
[341360562,1730833840679,-500.0,0.00041095,14]
[341360563,1730833840689,-500.0,0.00041095,14]
[341360564,1730833840698,-500.0,0.00041095,14]
[341360565,1730833840707,-500.0,0.00041095,14]
[341360566,1730833840717,-500.0,0.00041095,14]
[341360567,1730833840726,-500.0,0.00041095,14]
[341360568,1730833840736,-500.0,0.00041095,14]
[341360569,1730833840746,-500.0,0.00041095,14]
[341360570,1730833840757,-500.0,0.00041095,14]
[341360571,1730833840766,-500.0,0.00041095,14]
[341360572,1730833840775,-500.0,0.00041095,14]
[341360573,1730833840785,-500.8260841,0.00041095,14]
[341360574,1730833840795,-281.19,0.00041095,14]
[341360575,1730833840811,-500.0,0.00041095,14]
[341360576,1730833840822,-500.0,0.00041095,14]
[341360577,1730833840831,-500.0,0.00041095,14]
[341360578,1730833840841,-500.0,0.00041095,14]
[341360579,1730833840850,-500.0,0.00041095,14]
[341360580,1730833840859,-2084.17,0.00041095,14]
[341360581,1730833840869,-2084.17,0.00041095,14]
[341360582,1730833840878,-2084.17,0.00041095,14]
[341360583,1730833840887,-2084.17,0.00041095,14]
[341360584,1730833840896,-2084.17,0.00041095,14]
[341360585,1730833840911,-503.18959179,0.00041095,14]
[341360586,1730833840920,-502.05354836,0.00041095,14]
[341360587,1730833840929,-511.87662635,0.00041095,14]
[341360588,1730833840939,-504.07791051,0.00041095,14]
[341360589,1730833840948,-500.0,0.00041095,14]
[341360590,1730833840957,-513.8951401,0.00041095,14]
[341360591,1730833840966,-356.93186053,0.00041095,14]
[341360592,1730833840976,-501.79310876,0.00041095,14]
[341360593,1730833840985,-507.54034734,0.00041095,14]
[341360594,1730833840994,-500.0,0.00041095,120]
[341360595,1730833841004,-508.00597934,0.00041095,14]
[341360596,1730833841013,-151.01260781,0.00041095,120]
[341360597,1730833841022,-500.0,0.00041095,14]
[341360598,1730833841031,-447.09,0.00041095,14]
[341360599,1730833841041,-500.0,0.00041095,14]
[341360600,1730833841050,-503.73895507,0.00041095,14]
[341360601,1730833841059,-500.0,0.00041095,14]
[341360602,1730833841069,-500.0,0.00041095,14]
[341360603,1730833841078,-500.0,0.00041095,14]
[341360604,1730833841087,-501.56800331,0.00041095,14]
[341360605,1730833841097,-500.0,0.00041095,14]
[341360606,1730833841106,-500.0,0.00041095,14]
[341360607,1730833841115,-500.0,0.00041095,14]
[341360608,1730833841125,-516.86,0.00041095,14]
[341360609,1730833841134,-503.19819872,0.00041095,14]
[341360610,1730833841143,-505.67905592,0.00041095,14]
[341360611,1730833841154,-500.0,0.00041095,14]
[341360612,1730833841163,-500.0,0.00041095,14]
[341360613,1730833841173,-517.24187983,0.00041095,14]
[341360614,1730833841182,-500.0,0.00041095,14]
[341360615,1730833841191,-500.0,0.00041095,14]
[341360616,1730833841200,-506.26049178,0.00041095,14]
[341360617,1730833841209,-504.89,0.00041095,14]
[341360618,1730833841219,-500.0,0.00041095,14]
[341360619,1730833841228,-168.39,0.00041095,14]
[341360620,1730833841238,-508.485802,0.00041095,14]
[341360621,1730833841247,-500.0,0.00041095,14]
[341360622,1730833841257,-501.785324,0.00041095,14]
[341360623,1730833841269,-500.0,0.00041095,14]
[341360624,1730833841278,-500.0,0.00041095,7]
[341360625,1730833841287,-503.57234986,0.00041095,14]
[341360626,1730833841296,-500.0,0.00041095,14]
[341360627,1730833841306,-509.54634652,0.00041095,14]
[341360628,1730833841317,-500.0,0.00041095,14]
[341360629,1730833841328,-501.0,0.00041095,14]
[341360630,1730833841340,-500.0,0.00041095,14]
[341360631,1730833841351,-1910.69072878,0.00041221,120]
[341360632,1730833841362,-500.0,0.0004165,10]
[341360633,1730833841372,-211.98395702,0.00041799,2]
[341360634,1730833841383,-500.0,0.00041808,10]
[341360635,1730833841394,-500.21729308,0.00041834,10]
[341360636,1730833841404,-500.0,0.00041834,10]
[341360637,1730833841413,-500.0,0.00041834,10]
[341360638,1730833841422,-500.0,0.00041834,10]
[341360639,1730833841432,-500.0,0.00041834,10]
[341360640,1730833841443,-500.70409468,0.00041834,10]
[341360641,1730833841453,-500.0,0.00041834,10]
[341360642,1730833841463,-404.91291344,0.00041834,10]
[341360643,1730833841472,-168.91,0.00041867,14]
[341360644,1730833841482,-2084.17,0.00041867,14]
[341360645,1730833841492,-500.0,0.000419,2]
[341360646,1730833841502,-150.0,0.000419,120]
[341360647,1730833841577,-500.0,0.00041972,14]
[341360648,1730833841587,-500.0,0.00041972,14]
[341360649,1730833841596,-500.0,0.00041973,10]
[341360650,1730833841605,-500.0,0.00041973,5]
[341360651,1730833841614,-500.0,0.00041973,10]
[341360652,1730833841624,-500.37269111,0.00041973,10]
[341360653,1730833841632,-500.0,0.00041997,14]
[341360654,1730833841642,-500.0,0.00041997,14]
[341360655,1730833841652,-500.0,0.00041997,14]
[341360656,1730833841661,-324.6243,0.00041998,120]
[341360657,1730833841671,-500.0,0.00041998,14]
[341360658,1730833841680,-500.0,0.00041998,14]
[341360659,1730833841689,-527.4,0.00041998,14]
[341360660,1730833841699,-500.0,0.00041998,14]
[341360661,1730833841708,-500.0,0.00041998,14]
[341360662,1730833841718,-500.0,0.00041998,14]
[341360663,1730833841727,-500.0,0.00041998,14]
[341360664,1730833841736,-2084.17,0.00041998,14]
[341360665,1730833841745,-2084.17,0.00041998,14]
[341360666,1730833841755,-2084.17,0.00041998,14]
[341360667,1730833841766,-500.0,0.00041998,14]
[341360668,1730833841776,-500.0,0.00041998,14]
[341360669,1730833841786,-353.05098062,0.00041999,31]
[341360670,1730833841796,-476.89848054,0.00041999,31]
[341360671,1730833841806,-500.0,0.00041999,14]
[341360672,1730833841816,-500.0,0.00041999,14]
[341360673,1730833841825,-301.6,0.00041999,14]
[341360674,1730833841835,-500.0,0.00041999,14]
[341360675,1730833841844,-240.91316949,0.00041999,14]
[341360676,1730833841855,-500.0,0.00041999,14]
[341360677,1730833841866,-500.0,0.00041999,14]
[341360678,1730833841876,-500.0,0.00041999,14]
[341360679,1730833841887,-500.0,0.00041999,14]
[341360680,1730833841897,-500.0,0.00041999,14]
[341360681,1730833841909,-500.0,0.00041999,14]
[341360682,1730833841919,-500.0,0.00041999,14]
[341360683,1730833841928,-500.0,0.00041999,14]
[341360684,1730833841937,-500.0,0.00041999,14]
[341360685,1730833841947,-500.0,0.00041999,14]
[341360686,1730833841956,-500.0,0.00041999,14]
[341360687,1730833841966,-500.0,0.00041999,14]
[341360688,1730833841976,-460.61,0.00041999,14]
[341360689,1730833841985,-2084.17,0.00041999,14]
[341360690,1730833841994,-2084.17,0.00041999,14]
[341360691,1730833842003,-2084.17,0.00041999,14]
[341360692,1730833842013,-2084.17,0.00041999,14]
[341360693,1730833842022,-2084.17,0.00041999,14]
[341360694,1730833842031,-2084.17,0.00041999,14]
[341360695,1730833842041,-2084.17,0.00041999,14]
[341360696,1730833842050,-2084.17,0.00041999,14]
[341360697,1730833842061,-2084.17,0.00041999,14]
[341360698,1730833842071,-2084.17,0.00041999,14]
[341360699,1730833842082,-2084.17,0.00041999,14]
[341360700,1730833842091,-2084.17,0.00041999,14]
[341360701,1730833842101,-2084.17,0.00041999,14]
[341360702,1730833842110,-2084.17,0.00041999,14]
[341360703,1730833842119,-2084.29802618,0.00041999,14]
[341360704,1730833842128,-500.0,0.00041999,14]
[341360705,1730833842137,-500.0,0.00041999,14]
[341360706,1730833842146,-500.0,0.00041999,14]
[341360707,1730833842156,-500.0,0.00041999,14]